bitfinex/quotes_BTCUSD_20250608
["timestamp","ask_amount","ask_price","bid_price","bid_amount"]
[1749365731467,1.25457278,105610.0,105600.0,0.002]
[1749365731671,1.25457278,105610.0,105600.0,0.01088017]
[1749365732340,1.25457278,105610.0,105600.0,0.0108804]
[1749365732551,1.25457278,105610.0,105600.0,0.01088173]
[1749365732839,1.25457278,105610.0,105600.0,0.002]
[1749365733051,1.25457278,105610.0,105600.0,0.01088173]
[1749365733214,1.20343282,105610.0,105600.0,0.01088173]
[1749365734060,1.20343282,105610.0,105600.0,0.002]
[1749365734285,1.20343282,105610.0,105600.0,0.01088173]
[1749365734482,1.23184607,105610.0,105600.0,0.01088173]
[1749365734697,1.25457667,105610.0,105600.0,0.002]
[1749365734926,1.25457667,105610.0,105600.0,0.01088173]
[1749365735678,1.25457667,105610.0,105600.0,0.002]
[1749365735878,1.25457667,105610.0,105600.0,0.01088173]
[1749365736132,1.13777667,105610.0,105600.0,0.01088173]
[1749365736362,1.22437667,105610.0,105600.0,0.01088172]
[1749365736534,1.22437667,105610.0,105600.0,0.002]
[1749365736790,1.18137682,105610.0,105600.0,0.01088172]
[1749365737501,1.18137682,105610.0,105600.0,0.002]
[1749365737883,1.18137682,105610.0,105600.0,0.01088218]
[1749365738049,1.21167682,105610.0,105600.0,0.01088218]
[1749365738277,1.21167682,105610.0,105600.0,0.002]
[1749365738482,1.19637682,105610.0,105600.0,0.01088218]
[1749365738678,1.21187682,105610.0,105600.0,0.01088184]
[1749365739088,1.18346357,105610.0,105600.0,0.002]
[1749365739843,1.18346357,105610.0,105600.0,0.01088134]
[1749365740519,1.18346357,105610.0,105600.0,0.01088129]
[1749365740722,1.18346357,105610.0,105600.0,0.002]
[1749365741075,1.18346357,105610.0,105600.0,0.01088129]
[1749365741285,1.18346357,105610.0,105600.0,0.002]
[1749365741491,1.18346357,105610.0,105600.0,0.01088129]
[1749365741699,1.18346357,105610.0,105600.0,0.002]
[1749365741867,1.18346357,105610.0,105600.0,0.01088129]
[1749365742785,1.18346357,105610.0,105600.0,0.01087965]
[1749365742987,1.18346357,105610.0,105600.0,0.01087964]
[1749365743685,1.18346357,105610.0,105600.0,0.0108797]
[1749365745337,1.18346357,105610.0,105600.0,0.002]
[1749365745880,1.18346357,105610.0,105600.0,0.01087965]
[1749365746110,1.18346357,105610.0,105600.0,0.002]
[1749365746301,1.18346357,105610.0,105600.0,0.01087965]
[1749365746709,1.18346357,105610.0,105600.0,0.002]
[1749365747005,1.18346357,105610.0,105600.0,0.01087974]
[1749365748043,1.18346357,105610.0,105600.0,0.01087992]
[1749365748277,1.18346357,105610.0,105600.0,0.0108802]
[1749365748675,1.18346357,105610.0,105600.0,0.01088022]
[1749365748823,1.18346357,105610.0,105600.0,0.002]
[1749365749033,1.18346357,105610.0,105600.0,0.01088022]
[1749365749676,1.18346357,105610.0,105600.0,0.002]
[1749365750183,1.18346357,105610.0,105600.0,0.01088022]
[1749365750486,1.21187682,105610.0,105600.0,0.01088022]
[1749365750890,1.18346357,105610.0,105600.0,0.002]
[1749365751328,1.21187682,105610.0,105600.0,0.01088057]
[1749365751531,1.21187682,105610.0,105600.0,0.002]
[1749365752362,1.21187682,105610.0,105600.0,0.01088057]
[1749365753205,1.21187682,105610.0,105600.0,0.01088148]
[1749365754679,1.21187682,105610.0,105600.0,0.002]
[1749365754908,1.21187682,105610.0,105600.0,0.01088148]
[1749365755328,1.21187682,105610.0,105600.0,0.01088166]
[1749365755531,1.21187682,105610.0,105600.0,0.002]
[1749365755689,1.21187682,105610.0,105600.0,0.01088166]
[1749365756087,1.21187682,105610.0,105600.0,0.01088183]
[1749365756263,1.21187682,105610.0,105600.0,0.002]
[1749365756468,1.21187682,105610.0,105600.0,0.01088183]
[1749365757463,1.21187682,105610.0,105600.0,0.002]
[1749365757662,1.21187682,105610.0,105600.0,0.01088183]
[1749365758458,1.21187682,105610.0,105600.0,0.01088193]
[1749365758657,1.21187682,105610.0,105600.0,0.002]
[1749365758871,1.21187682,105610.0,105600.0,0.01088194]
[1749365761003,1.21187682,105610.0,105600.0,0.002]
[1749365761221,1.21187682,105610.0,105600.0,0.01088194]
[1749365761884,1.21187682,105610.0,105600.0,0.01088202]
[1749365762095,1.18346357,105610.0,105600.0,0.01088202]
[1749365762308,1.18346357,105610.0,105600.0,0.002]
[1749365762521,1.18346357,105610.0,105600.0,0.0108816]
[1749365762735,1.18346357,105610.0,105600.0,0.01088153]
[1749365762952,1.18346357,105610.0,105600.0,0.01088152]
[1749365763775,1.18346357,105610.0,105600.0,0.01088127]
[1749365763986,1.18346357,105610.0,105600.0,0.01088115]
[1749365765905,1.18346357,105610.0,105600.0,0.01088114]
[1749365766879,1.18346357,105610.0,105600.0,0.002]
[1749365767085,1.18346357,105610.0,105600.0,0.01088114]
[1749365767884,1.18346357,105610.0,105600.0,0.002]
[1749365768132,1.18346357,105610.0,105600.0,0.01088114]
[1749365768538,1.18346357,105610.0,105600.0,0.002]
[1749365768970,1.18346357,105610.0,105600.0,0.01088095]
[1749365769169,1.18346357,105610.0,105600.0,0.002]
[1749365769295,1.18346357,105610.0,105600.0,0.01088095]
[1749365769706,1.18346357,105610.0,105600.0,0.002]
[1749365770132,1.18346357,105610.0,105600.0,0.01088095]
[1749365771134,1.18346357,105610.0,105600.0,0.01088101]
[1749365771332,1.18346357,105610.0,105600.0,0.002]
[1749365771584,1.18346357,105610.0,105600.0,0.01088101]
[1749365772543,1.18346357,105610.0,105600.0,0.002]
[1749365772747,1.18346357,105610.0,105600.0,0.01088138]
[1749365773177,1.18346357,105610.0,105600.0,0.002]
[1749365773797,1.18346357,105610.0,105600.0,0.01088138]
[1749365774001,1.18346357,105610.0,105600.0,0.002]
[1749365774204,1.18346357,105610.0,105600.0,0.01088138]
[1749365774417,1.18346357,105610.0,105600.0,0.002]
[1749365774619,1.1826802,105610.0,105600.0,0.01088138]
[1749365775592,1.1826802,105610.0,105600.0,0.002]
[1749365775792,1.1826802,105610.0,105600.0,0.01088123]
[1749365776196,1.1826802,105610.0,105600.0,0.002]
[1749365776399,1.1826802,105610.0,105600.0,0.01088123]
[1749365776879,1.1826802,105610.0,105600.0,0.002]
[1749365777415,1.1826802,105610.0,105600.0,0.01088121]
[1749365778261,1.1826802,105610.0,105600.0,0.0108812]
[1749365780157,1.1826802,105610.0,105600.0,0.002]
[1749365780566,1.1826802,105610.0,105600.0,0.01088112]
[1749365781405,1.1826802,105610.0,105600.0,0.0108811]
[1749365781605,1.1826802,105610.0,105600.0,0.002]
[1749365782276,1.1826802,105610.0,105600.0,0.0108811]
[1749365782477,1.1826802,105610.0,105600.0,0.002]
[1749365782612,1.1826802,105610.0,105600.0,0.0108811]
[1749365782810,1.1826802,105610.0,105600.0,0.002]
[1749365783238,1.1826802,105610.0,105600.0,0.0108811]
[1749365783450,1.1826802,105610.0,105600.0,0.002]
[1749365783826,1.1826802,105610.0,105600.0,0.01088107]
[1749365784024,1.1826802,105610.0,105600.0,0.002]
[1749365784431,1.1826802,105610.0,105600.0,0.01088107]
[1749365785375,1.1826802,105610.0,105600.0,0.002]
[1749365785570,1.1826802,105610.0,105600.0,0.01088107]
[1749365785731,1.1826802,105610.0,105600.0,0.01088116]
[1749365787225,1.1826802,105610.0,105600.0,0.002]
[1749365787559,1.1826802,105610.0,105600.0,0.01088123]
[1749365788406,1.1826802,105610.0,105600.0,0.0108818]
[1749365788809,1.1826802,105610.0,105600.0,0.002]
[1749365789391,1.1826802,105610.0,105600.0,0.01088193]
[1749365790111,1.1826802,105610.0,105600.0,0.002]
[1749365790308,1.1826802,105610.0,105600.0,0.01088193]
[1749365790551,1.1521802,105610.0,105600.0,0.002]
[1749365790770,1.1521802,105610.0,105600.0,0.01088187]
[1749365790963,1.0655802,105610.0,105600.0,0.19139393]
[1749365791142,1.1294496,105610.0,105600.0,0.002]
[1749365791495,1.15218592,105610.0,105600.0,0.002]
[1749365791709,1.15218768,105610.0,105600.0,0.002]
[1749365792318,1.1294496,105610.0,105600.0,0.002]
[1749365802932,1.1294096,105610.0,105600.0,0.002]
[1749365814531,1.1609096,105610.0,105600.0,0.002]
[1749365821318,1.18365032,105610.0,105600.0,0.002]
[1749365823495,1.18365032,105610.0,105600.0,0.28768]
[1749365830885,0.69233032,105610.0,105600.0,0.28768]
[1749365845243,0.69232339,105610.0,105600.0,0.28768]
[1749365850706,0.69232349,105610.0,105600.0,0.28768]
[1749365855054,0.6695896,105610.0,105600.0,0.28768]
[1749365855289,0.69232365,105610.0,105600.0,0.28768]
[1749365878795,0.69232365,105610.0,105600.0,0.002]
[1749365878934,0.69232365,105610.0,105600.0,0.28764]
[1749365879835,0.69232365,105610.0,105600.0,0.002]
[1749365880147,0.69232365,105610.0,105600.0,0.28764]
[1749365890406,0.69232365,105610.0,105600.0,0.002]
[1749365890626,0.69232365,105610.0,105600.0,0.2876]
[1749365892239,0.69232365,105610.0,105600.0,0.002]
[1749365892445,0.69232365,105610.0,105600.0,0.2876]
[1749365910617,0.7068645,105610.0,105600.0,0.002]
[1749365910816,0.7518327,105610.0,105600.0,0.002]
[1749365911265,0.7518327,105610.0,105600.0,0.01088126]
[1749365911467,0.78025027,105610.0,105600.0,0.002]
[1749365912007,0.75838509,105610.0,105600.0,0.002]
[1749365913726,0.72996752,105610.0,105600.0,0.002]
[1749365914349,0.7068645,105610.0,105600.0,0.002]
[1749365919309,1.15513261,105610.0,105600.0,0.002]
[1749365919515,1.21195175,105610.0,105600.0,0.002]
[1749365920506,1.20995175,105610.0,105600.0,0.002]
[1749365920705,1.21295175,105610.0,105600.0,0.002]
[1749365920914,1.21095175,105610.0,105600.0,0.002]
[1749365921042,1.21295175,105610.0,105600.0,0.002]
[1749365921669,1.15617804,105610.0,105600.0,0.002]
[1749365924640,1.1844832,105610.0,105600.0,0.002]
[1749365934924,1.14663214,105610.0,105600.0,0.002]
[1749365936030,1.11816914,105610.0,105600.0,0.002]
[1749365938725,1.1560202,105610.0,105600.0,0.002]
[1749365947621,1.12771504,105610.0,105600.0,0.002]
[1749365948694,1.61911504,105610.0,105600.0,0.002]
[1749365951696,1.55108173,105610.0,105600.0,0.002]
[1749365951906,0.59479327,105590.0,105580.0,0.002]
[1749365952084,0.70404732,105590.0,105580.0,0.01087947]
[1749365952283,0.75685502,105590.0,105580.0,0.01087947]
[1749365952486,0.75685502,105590.0,105580.0,0.01087881]
[1749365952721,0.75685502,105590.0,105580.0,0.002]
[1749365952845,0.75685502,105590.0,105580.0,0.01087871]
[1749365953031,0.75785502,105590.0,105580.0,0.01087872]
[1749365953238,0.75785502,105590.0,105580.0,0.01135728]
[1749365953435,0.78621678,105590.0,105580.0,0.01135728]
[1749365953639,0.70504732,105590.0,105580.0,0.00247858]
[1749365953847,0.73340908,105590.0,105580.0,0.01135732]
[1749365954255,0.82980856,105590.0,105580.0,0.01135732]
[1749365954458,0.82980856,105590.0,105580.0,0.00247858]
[1749365962320,1.32660856,105590.0,105580.0,0.00247858]
[1749365966300,1.23020908,105590.0,105580.0,0.00247858]
[1749365967105,1.20184732,105590.0,105580.0,0.00247858]
[1749365969352,1.69328732,105590.0,105580.0,0.00247858]
[1749365972483,1.69336732,105590.0,105580.0,0.00247858]
[1749365972772,1.69329767,105590.0,105580.0,0.00247858]
[1749365973758,1.72162818,105590.0,105580.0,0.00247858]
[1749365975390,1.72163465,105590.0,105580.0,0.00247858]
[1749365979908,1.72163465,105590.0,105580.0,0.01136067]
[1749365980626,1.72163465,105590.0,105580.0,0.01136107]
[1749365980830,1.72163465,105590.0,105580.0,0.00247858]
[1749365981185,1.72163465,105590.0,105580.0,0.01136107]
[1749365981385,1.72166833,105590.0,105580.0,0.01136107]
[1749365982662,1.72166833,105590.0,105580.0,0.00247858]
[1749365983283,1.72166833,105590.0,105580.0,0.01136284]
[1749365984580,1.72166833,105590.0,105580.0,0.01136292]
[1749365984866,1.72166833,105590.0,105580.0,0.00247858]
[1749365985011,1.72166833,105590.0,105580.0,0.01136292]
[1749365985764,1.72166833,105590.0,105580.0,0.0113628]
[1749365985976,1.71881667,105590.0,105580.0,0.0113628]
[1749365986199,1.71881667,105590.0,105580.0,0.00247858]
[1749365987166,1.71881667,105590.0,105580.0,0.01136294]
[1749365988024,2.21266688,105590.0,105580.0,0.01136294]
[1749365988226,2.21266688,105590.0,105580.0,0.00247858]
[1749365988545,2.21266688,105590.0,105580.0,0.01136307]
[1749365989732,2.21266688,105590.0,105580.0,0.00247858]
[1749365989927,2.21266688,105590.0,105580.0,0.01136307]
[1749365990482,2.21266688,105590.0,105580.0,0.00247858]
[1749365990688,2.21266688,105590.0,105580.0,0.01136309]
[1749365991617,2.21266688,105590.0,105580.0,0.01136324]
[1749365992074,2.21266688,105590.0,105580.0,0.0099403]
[1749365992488,2.21266688,105590.0,105580.0,0.00105564]
[1749365992662,2.21266688,105590.0,105580.0,0.0099403]
[1749365994927,2.70651709,105590.0,105580.0,0.0099403]
[1749365995247,2.70651709,105590.0,105580.0,0.00994042]
[1749365995395,2.70651709,105590.0,105580.0,0.00105564]
[1749365995802,2.70651709,105590.0,105580.0,0.00994042]
[1749365996714,2.70651709,105590.0,105580.0,0.00994246]
[1749365997226,2.70651709,105590.0,105580.0,0.00105564]
[1749365997405,2.70651709,105590.0,105580.0,0.00994246]
[1749365997610,2.70651709,105590.0,105580.0,0.00105564]
[1749365997854,2.70651709,105590.0,105580.0,0.00994246]
[1749365998734,2.21266688,105590.0,105580.0,0.00994246]
[1749365998908,2.21266688,105590.0,105580.0,0.00105564]
[1749365999322,2.21266688,105590.0,105580.0,0.00994246]
[1749365999537,2.21266688,105590.0,105580.0,0.00105564]
[1749365999742,2.21266688,105590.0,105580.0,0.00994246]
[1749366000386,2.21266688,105590.0,105580.0,0.00105564]
[1749366000601,2.21266688,105590.0,105580.0,0.00994246]
[1749366000972,2.21258688,105590.0,105580.0,0.00994246]
[1749366001318,2.21258688,105590.0,105580.0,0.00105564]
[1749366001517,2.21258688,105590.0,105580.0,0.00994246]
[1749366001779,2.21258688,105590.0,105580.0,0.00105564]
[1749366001984,2.21258688,105590.0,105580.0,0.00994246]
[1749366002552,2.21258688,105590.0,105580.0,0.00105564]
[1749366002972,2.21258688,105590.0,105580.0,0.00994246]
[1749366003751,2.21258688,105590.0,105580.0,0.00994243]
[1749366004464,2.70643709,105590.0,105580.0,0.00105564]
[1749366004707,2.74425278,105590.0,105580.0,0.00994244]
[1749366005118,2.74425278,105590.0,105580.0,0.00105564]
[1749366005642,2.74425278,105590.0,105580.0,0.00994244]
[1749366006071,2.74425278,105590.0,105580.0,0.00105564]
[1749366006736,2.74425278,105590.0,105580.0,0.00994244]
[1749366006949,2.74425278,105590.0,105580.0,0.00105564]
[1749366042478,2.77271778,105590.0,105580.0,0.00105564]
[1749366044319,1.78501736,105590.0,105580.0,0.00105564]
[1749366044488,2.27886757,105590.0,105580.0,0.00105564]
[1749366045254,1.78501736,105590.0,105580.0,0.00105564]
[1749366045518,2.27886757,105590.0,105580.0,0.00105564]
[1749366045712,2.24105188,105590.0,105580.0,0.00105564]
[1749366048212,2.73490209,105590.0,105580.0,0.00105564]
[1749366057013,1.74720167,105590.0,105580.0,0.00105564]
[1749366057224,2.24105188,105590.0,105580.0,0.00105564]
[1749366059560,2.73490209,105590.0,105580.0,0.00105564]
[1749366062687,1.74720167,105590.0,105580.0,0.00105564]
[1749366062899,2.24105188,105590.0,105580.0,0.00105564]
[1749366063870,2.19457103,105590.0,105580.0,0.00105564]
[1749366064054,2.13775322,105590.0,105580.0,0.03315564]
[1749366069585,2.11507097,105590.0,105580.0,0.03315564]
[1749366071874,2.02859097,105590.0,105580.0,0.03315564]
[1749366072074,2.11507097,105590.0,105580.0,0.03315564]
[1749366074036,2.11507097,105590.0,105580.0,0.01715564]
[1749366074833,2.11507097,105590.0,105580.0,0.21605694]
[1749366075035,2.11507097,105590.0,105580.0,0.24082834]
[1749366075683,2.11507097,105590.0,105580.0,0.25977069]
[1749366076098,2.10560083,105590.0,105580.0,0.25029956]
[1749366078755,0.001,105590.0,105580.0,0.36564103]
[1749366078956,0.10642055,105590.0,105580.0,0.85949124]
[1749366079174,0.10642055,105590.0,105580.0,0.36564103]
[1749366079620,0.1064201,105590.0,105580.0,0.36564103]
[1749366079820,0.11489051,105590.0,105580.0,0.36564103]
[1749366080023,0.1054201,105590.0,105580.0,0.36564103]
[1749366080199,0.1054201,105590.0,105580.0,0.36964103]
[1749366080514,0.09594996,105590.0,105580.0,0.36964103]
[1749366080734,0.08648,105590.0,105580.0,0.36964103]
[1749366080933,0.08648,105590.0,105580.0,0.89228969]
[1749366081167,0.08648,105590.0,105580.0,0.39843948]
[1749366081447,0.08648,105590.0,105580.0,0.89228969]
[1749366082829,0.09594987,105590.0,105580.0,0.89228969]
[1749366083659,0.09594978,105590.0,105580.0,0.89228969]
[1749366084727,0.10541974,105590.0,105580.0,0.89228969]
[1749366085645,0.11488988,105590.0,105580.0,1.17784969]
[1749366085854,0.11488988,105590.0,105580.0,0.68399948]
[1749366086262,0.12436011,105590.0,105580.0,0.68399948]
[1749366087459,0.12436074,105590.0,105580.0,0.67452862]
[1749366087670,0.13383124,105590.0,105580.0,0.68399948]
[1749366087870,0.13383187,105590.0,105580.0,0.68399966]
[1749366088335,0.13383187,105590.0,105580.0,0.68399912]
[1749366090339,0.12436128,105590.0,105580.0,0.68399858]
[1749366090542,0.12436128,105590.0,105580.0,0.66869858]
[1749366093026,0.12436128,105590.0,105580.0,0.68439858]
[1749366093845,0.12436128,105590.0,105580.0,0.66869858]
[1749366096677,0.11489078,105590.0,105580.0,0.66869858]
[1749366097525,0.11489078,105590.0,105580.0,0.65259858]
[1749366098657,0.11489078,105590.0,105580.0,0.62380013]
[1749366099059,0.10542037,105590.0,105580.0,0.62380013]
[1749366099292,0.15596128,105590.0,105580.0,0.62380013]
[1749366100915,0.83922381,105590.0,105580.0,0.10145512]
[1749366101125,0.82975358,105590.0,105580.0,0.58587633]
[1749366101339,0.82975358,105590.0,105580.0,0.59534755]
[1749366107922,0.82975358,105590.0,105580.0,0.60481868]
[1749366109764,0.82975358,105590.0,105580.0,0.61428972]
[1749366110467,0.82975358,105590.0,105580.0,0.62376067]
[1749366110885,0.63087112,105590.0,105580.0,0.62376013]
[1749366114343,0.63087076,105590.0,105580.0,0.62376013]
[1749366125260,0.64034126,105590.0,105580.0,0.62376013]
[1749366125468,0.64024655,105590.0,105580.0,0.62376013]
[1749366127042,0.82965842,105590.0,105580.0,0.59534728]
[1749366127244,0.82965842,105590.0,105580.0,0.61428927]
[1749366127449,0.64024655,105590.0,105580.0,0.61428927]
[1749366127901,0.63077605,105590.0,105580.0,0.62376013]
[1749366131424,0.13692584,105590.0,105580.0,0.62376013]
[1749366134426,0.14639634,105590.0,105580.0,0.62376013]
[1749366136704,0.64024655,105590.0,105580.0,0.62376013]
[1749366139430,0.64971714,105590.0,105580.0,0.62376013]
[1749366139714,0.83912901,105590.0,105580.0,0.61428927]
[1749366144438,0.64971714,105590.0,105580.0,0.61428927]
[1749366144649,0.64971714,105590.0,105580.0,0.62376013]
[1749366147388,0.15586693,105590.0,105580.0,0.62376013]
[1749366148157,0.06948164,105590.0,105580.0,0.62376013]
[1749366148362,0.13698055,105590.0,105580.0,0.62376013]
[1749366148773,0.05054055,105590.0,105580.0,0.62376013]
[1749366148971,0.11485042,105590.0,105580.0,0.62376013]
[1749366149189,0.01893992,105590.0,105580.0,0.62376013]
[1749366149401,0.11484997,105590.0,105580.0,0.62376013]
[1749366150427,0.10537983,105590.0,105580.0,0.62376013]
[1749366151156,0.01893983,105590.0,105580.0,0.62376013]
[1749366151356,0.10537992,105590.0,105580.0,0.62376013]
[1749366151618,0.10537983,105590.0,105580.0,0.62376013]
[1749366152822,0.09590987,105590.0,105580.0,0.62376013]
[1749366153005,0.10537983,105590.0,105580.0,0.62376013]
[1749366153410,0.09590987,105590.0,105580.0,0.62376013]
[1749366153646,0.10537983,105590.0,105580.0,0.62376013]
[1749366154052,0.09590987,105590.0,105580.0,0.62376013]
[1749366154253,0.10537983,105590.0,105580.0,0.62376013]
[1749366155820,0.11484988,105590.0,105580.0,0.62376013]
[1749366156252,0.13114988,105590.0,105580.0,0.62376013]
[1749366156789,0.14724988,105590.0,105580.0,0.62376013]
[1749366158898,0.06080988,105590.0,105580.0,0.33824013]
[1749366159111,0.12830987,105590.0,105580.0,0.62372013]
[1749366159531,0.11884,105590.0,105580.0,1.11757034]
[1749366159734,0.08644,105590.0,105580.0,1.11757034]
[1749366161010,0.09590978,105590.0,105580.0,1.11757034]
[1749366163031,0.12750978,105590.0,105580.0,1.11757034]
[1749366163871,0.13697965,105590.0,105580.0,0.62372013]
[1749366164397,0.14644961,105590.0,105580.0,0.62372013]
[1749366166058,0.15591975,105590.0,105580.0,0.62372013]
[1749366168082,0.12750978,105590.0,105580.0,0.62372013]
[1749366168283,0.13697983,105590.0,105580.0,0.62372013]
[1749366169036,0.14645006,105590.0,105580.0,0.62372013]
[1749366169263,0.13697983,105590.0,105580.0,0.62372013]
[1749366170152,0.14644997,105590.0,105580.0,0.62372013]
[1749366174291,0.13697983,105590.0,105580.0,0.62372013]
[1749366177514,0.14645006,105590.0,105580.0,0.62372013]
[1749366177738,0.14644997,105590.0,105580.0,0.62372013]
[1749366180238,0.13697983,105590.0,105580.0,0.62372013]
[1749366180646,0.10537983,105590.0,105580.0,0.62372013]
[1749366181164,0.13587983,105590.0,105580.0,0.62372013]
[1749366181863,0.12640978,105590.0,105580.0,0.62372013]
[1749366182069,0.10154,105590.0,105580.0,0.62372013]
[1749366182270,0.08644,105590.0,105580.0,1.11757034]
[1749366182477,0.09590978,105590.0,105580.0,1.11757034]
[1749366182678,0.64059811,105600.0,105590.0,0.21782256]
[1749366182881,0.64059811,105600.0,105590.0,0.31422204]
[1749366183050,0.65006771,105600.0,105590.0,0.31422204]
[1749366183956,0.64059811,105600.0,105590.0,0.31422204]
[1749366184162,0.65006771,105600.0,105590.0,0.31422204]
[1749366184572,0.6595374,105600.0,105590.0,0.31422204]
[1749366185057,0.6595374,105600.0,105590.0,0.31522204]
[1749366185265,0.65006771,105600.0,105590.0,0.31522204]
[1749366187947,0.83946164,105600.0,105590.0,0.30575208]
[1749366188361,0.83946164,105600.0,105590.0,0.31522222]
[1749366188567,0.83946164,105600.0,105590.0,0.32469227]
[1749366188769,0.65006771,105600.0,105590.0,0.33416223]
[1749366190703,0.6595374,105600.0,105590.0,0.33416223]
[1749366190863,0.65006834,105600.0,105590.0,0.32469227]
[1749366191953,0.64059865,105600.0,105590.0,0.33416223]
[1749366193675,0.1467479,105600.0,105590.0,0.33416223]
[1749366193896,0.64059811,105600.0,105590.0,0.33416223]
[1749366195459,0.0319,105600.0,105590.0,0.33416223]
[1749366195687,0.15511349,105610.0,105600.0,0.21780192]
[1749366195895,0.6489637,105610.0,105600.0,0.5996814]
[1749366196317,0.64896361,105610.0,105600.0,0.5996814]
[1749366196766,0.65843232,105610.0,105600.0,0.5996814]
[1749366196982,0.65843313,105610.0,105600.0,0.5996814]
[1749366201224,0.65843313,105610.0,105600.0,0.5996414]
[1749366201469,0.64896487,105610.0,105600.0,0.59964149]
[1749366201693,0.64896487,105610.0,105600.0,0.59017234]
[1749366202262,0.82887234,105610.0,105600.0,0.59017234]
[1749366203074,0.82887234,105610.0,105600.0,0.59017252]
[1749366204973,0.81940372,105610.0,105600.0,0.59017252]
[1749366209096,0.81940372,105610.0,105600.0,0.58070301]
[1749366209309,0.80993501,105610.0,105600.0,0.58070301]
[1749366210757,0.80993501,105610.0,105600.0,0.09639948]
[1749366210994,0.80046621,105610.0,105600.0,0.38183948]
[1749366217330,0.80046621,105610.0,105600.0,0.09639948]
[1749366217563,0.25839306,105590.0,105580.0,0.21889893]
[1749366217763,0.5628314,105590.0,105580.0,0.61020927]
[1749366217986,0.74277331,105590.0,105580.0,0.39236661]
[1749366218213,0.74277331,105590.0,105580.0,0.59126782]
[1749366218414,0.82921331,105590.0,105580.0,0.31529913]
[1749366218628,0.82921331,105590.0,105580.0,0.61021035]
[1749366218828,0.82921331,105590.0,105580.0,0.61421035]
[1749366219799,0.82921331,105590.0,105580.0,0.61721035]
[1749366223065,0.82921331,105590.0,105580.0,0.62668148]
[1749366226615,0.82921331,105590.0,105580.0,0.62668103]
[1749366240517,0.82921331,105590.0,105580.0,0.61720999]
[1749366241741,0.82921331,105590.0,105580.0,0.62668103]
[1749366244240,0.81974308,105590.0,105580.0,0.61720999]
[1749366245324,0.81974308,105590.0,105580.0,0.61472999]
[1749366247526,0.81974308,105590.0,105580.0,0.62420103]
[1749366247952,0.81027267,105590.0,105580.0,0.10197512]
[1749366248133,0.81027267,105590.0,105580.0,0.38741512]
[1749366259363,0.31642246,105590.0,105580.0,0.38741512]
[1749366259565,0.81027267,105590.0,105580.0,0.38741512]
[1749366265236,0.81027267,105590.0,105580.0,0.58631633]
[1749366267280,0.81027267,105590.0,105580.0,0.59578764]
[1749366279433,0.80080208,105590.0,105580.0,0.39688652]
[1749366279985,0.80080208,105590.0,105580.0,0.58631633]
[1749366285326,0.81027249,105590.0,105580.0,0.58631633]
[1749366285748,0.81027249,105590.0,105580.0,0.59578764]
[1749366302008,0.53442035,105590.0,105580.0,0.60525877]
[1749366302212,0.08648,105590.0,105580.0,1.10857984]
[1749366302625,0.55405802,105600.0,105590.0,0.21782256]
[1749366302626,0.63106851,105600.0,105590.0,0.21782256]
[1749366302860,0.13118772,105600.0,105590.0,0.31422204]
[1749366303275,0.14065723,105600.0,105590.0,0.31422204]
[1749366303484,0.64960744,105600.0,105590.0,0.31422204]
[1749366304119,0.64960744,105600.0,105590.0,0.31622204]
[1749366304332,0.64960744,105600.0,105590.0,0.31822204]
[1749366305794,0.0503383,105600.0,105590.0,0.31822204]
[1749366305998,0.60873802,105600.0,105590.0,0.31822204]
[1749366306707,0.63923802,105600.0,105590.0,0.31822204]
[1749366307188,0.64870762,105600.0,105590.0,0.31822204]
[1749366307810,0.55275802,105600.0,105590.0,0.31822204]
[1749366308021,0.63923802,105600.0,105590.0,0.31822204]
[1749366310502,0.14538781,105600.0,105590.0,0.31822204]
[1749366310671,0.63923802,105600.0,105590.0,0.31822204]
[1749366314502,0.64870771,105600.0,105590.0,0.31822222]
[1749366315086,0.83810164,105600.0,105590.0,0.31822222]
[1749366315556,0.83810164,105600.0,105590.0,0.30875208]
[1749366322725,0.83810164,105600.0,105590.0,0.31822222]
[1749366326562,0.83810164,105600.0,105590.0,0.32769227]
[1749366328361,0.14538772,105600.0,105590.0,0.33716223]
[1749366328567,0.65817704,105600.0,105590.0,0.33716223]
[1749366330740,0.64870744,105600.0,105590.0,0.33716223]
[1749366331493,1.19548327,105610.0,105600.0,0.19886344]
[1749366331719,1.31376327,105610.0,105600.0,0.58086292]
[1749366331937,1.31376327,105610.0,105600.0,0.5808631]
[1749366332129,1.30429501,105610.0,105600.0,0.5808631]
[1749366332361,1.30429501,105610.0,105600.0,0.38199948]
[1749366332698,1.30429501,105610.0,105600.0,0.38299948]
[1749366338403,1.30429501,105610.0,105600.0,0.5818631]
[1749366338830,1.22728354,105610.0,105600.0,0.5913327]
[1749366339032,1.31376354,105610.0,105600.0,0.60076221]
[1749366339697,1.31376354,105610.0,105600.0,0.61023163]
[1749366340377,1.31376354,105610.0,105600.0,0.60076221]
[1749366342270,0.82244354,105610.0,105600.0,0.61023163]
[1749366342468,0.82244354,105610.0,105600.0,0.61970096]
[1749366343302,0.64253499,105610.0,105600.0,0.61970033]
[1749366343535,0.65200343,105610.0,105600.0,0.61970033]
[1749366343750,0.66147205,105610.0,105600.0,0.61970033]
[1749366344393,0.65200352,105610.0,105600.0,0.61970033]
[1749366345628,0.56552352,105610.0,105600.0,0.61970033]
[1749366345839,0.65200352,105610.0,105600.0,0.61970033]
[1749366346040,0.66147223,105610.0,105600.0,0.61970033]
[1749366350082,0.84138024,105610.0,105600.0,0.61023127]
[1749366350311,0.84138024,105610.0,105600.0,0.61970051]
[1749366355740,0.83191198,105610.0,105600.0,0.61970051]
[1749366356147,0.54658727,105610.0,105600.0,0.61969997]
[1749366356387,0.63302727,105610.0,105600.0,0.61969997]
[1749366356683,0.65196478,105610.0,105600.0,0.61969997]
[1749366357211,0.64249598,105610.0,105600.0,0.61969997]
[1749366358989,0.65196478,105610.0,105600.0,0.61969997]
[1749366359399,0.84134078,105610.0,105600.0,0.61969997]
[1749366360563,0.84134078,105610.0,105600.0,0.61023091]
[1749366360970,0.84134078,105610.0,105600.0,0.61970006]
[1749366367319,0.84134078,105610.0,105600.0,0.61023091]
[1749366370900,0.83187234,105610.0,105600.0,0.61023091]
[1749366371067,0.83187234,105610.0,105600.0,0.60076167]
[1749366373328,0.82240372,105610.0,105600.0,0.58182292]
[1749366374785,0.82240372,105610.0,105600.0,0.09739948]
[1749366374994,1.30678522,105610.0,105600.0,0.2864]
[1749366376388,0.81293501,105610.0,105600.0,0.2864]
[1749366385359,0.81109501,105610.0,105600.0,0.2864]
[1749366386289,0.81006986,105610.0,105600.0,0.2864]
[1749366406547,0.81006986,105610.0,105600.0,0.001]
[1749366406754,0.81006986,105610.0,105600.0,0.28644]
[1749366425287,0.81010986,105610.0,105600.0,0.28644]
[1749366432381,0.81010986,105610.0,105600.0,0.2864]
[1749366441169,0.81010986,105610.0,105600.0,0.28392]
[1749366461172,0.81010986,105610.0,105600.0,0.30168687]